[Event "Titled Tuesday Blitz December 27 Early 2022"]
[White "Korchmar, Vasiliy"]
[Black "Bogaudinov, Rushan"]
[WhiteFideId "24131750"]
[BlackFideId "4129288"]
[WhiteElo "2438"]
[BlackElo "1939"]
[Result "1-0"]
[Round "01"]
[TimeControl "180+2"]
[Date "2022.12.27"]
[WhiteClock "0:00:29"]
[BlackClock "0:00:38"]

1. e4 {[%clk 0:02:58]}  e6 {[%clk 0:02:59]} 2. d4 {[%clk 0:02:58]}  d5 {[%clk 0:02:59]} 3. e5 {[%clk 0:02:58]}  c5 {[%clk 0:02:57]} 4. c3 {[%clk 0:02:58]}  Nc6 {[%clk 0:02:57]} 5. Nf3 {[%clk 0:02:58]}  Nge7 {[%clk 0:02:58]} 6. Na3 {[%clk 0:02:57]}  Nf5 {[%clk 0:02:57]} 7. Nc2 {[%clk 0:02:57]}  a6 {[%clk 0:02:57]} 8. Bd3 {[%clk 0:02:55]}  Be7 {[%clk 0:02:55]} 9. O-O {[%clk 0:02:53]}  b5 {[%clk 0:02:51]} 10. g4 {[%clk 0:02:42]}  Nh4 {[%clk 0:02:48]} 11. Nxh4 {[%clk 0:02:43]}  Bxh4 {[%clk 0:02:48]} 12. f4 {[%clk 0:02:44]}  c4 {[%clk 0:02:36]} 13. Be2 {[%clk 0:02:43]}  Be7 {[%clk 0:02:35]} 14. Be3 {[%clk 0:02:08]}  g6 {[%clk 0:02:17]} 15. Bf3 {[%clk 0:01:48]}  Qc7 {[%clk 0:02:04]} 16. f5 {[%clk 0:01:46]}  Bb7 {[%clk 0:01:56]} 17. fxe6 {[%clk 0:01:36]}  fxe6 {[%clk 0:01:56]} 18. Bg2 {[%clk 0:01:36]}  O-O-O {[%clk 0:01:51]} 19. Bh6 {[%clk 0:01:27]}  Bf8 {[%clk 0:01:39]} 20. Bg5 {[%clk 0:01:23]}  Rd7 {[%clk 0:01:35]} 21. Bf6 {[%clk 0:01:06]}  Rg8 {[%clk 0:01:34]} 22. g5 {[%clk 0:00:59]}  h6 {[%clk 0:01:22]} 23. Bh3 {[%clk 0:00:59]}  Re7 {[%clk 0:01:04]} 24. Bxe7 {[%clk 0:00:54]}  Qxe7 {[%clk 0:01:04]} 25. Qg4 {[%clk 0:00:46]}  Nd8 {[%clk 0:01:01]} 26. Rf6 {[%clk 0:00:42]}  h5 {[%clk 0:00:48]} 27. Qf4 {[%clk 0:00:38]}  Bc6 {[%clk 0:00:48]} 28. Nb4 {[%clk 0:00:33]}  Bd7 {[%clk 0:00:47]} 29. Nxa6 {[%clk 0:00:32]}  Bg7 {[%clk 0:00:45]} 30. Rf1 {[%clk 0:00:31]}  Bxf6 {[%clk 0:00:44]} 31. exf6 {[%clk 0:00:32]}  e5 {[%clk 0:00:43]} 32. fxe7 {[%clk 0:00:32]}  exf4 {[%clk 0:00:43]} 33. exd8=Q+ {[%clk 0:00:30]}  Kxd8 {[%clk 0:00:42]} 34. Bxd7 {[%clk 0:00:30]}  Kxd7 {[%clk 0:00:43]} 35. Rxf4 {[%clk 0:00:30]}  Re8 {[%clk 0:00:43]} 36. Kf2 {[%clk 0:00:29]}  Re6 {[%clk 0:00:38]} 37. Nc5+ {[%clk 0:00:29]} 1-0


[Site "https://www.chess.com"]

[Event "Titled Tuesday Blitz December 27 Early 2022"]
[White "Koridze, Lile"]
[Black "Sourath Biswas"]
[WhiteFideId "13612514"]
[BlackFideId "35091484"]
[WhiteElo "2191"]
[BlackElo "2281"]
[Result "0-1"]
[Round "01"]
[TimeControl "180+2"]
[Date "2022.12.27"]
[WhiteClock "0:00:24"]
[BlackClock "0:00:06"]

1. d4 {[%clk 0:03:00]}  Nf6 {[%clk 0:02:54]} 2. c4 {[%clk 0:03:01]}  g6 {[%clk 0:02:48]} 3. Nc3 {[%clk 0:03:00]}  Bg7 {[%clk 0:02:49]} 4. e4 {[%clk 0:03:00]}  O-O {[%clk 0:02:49]} 5. Nf3 {[%clk 0:03:01]}  d6 {[%clk 0:02:48]} 6. Be2 {[%clk 0:03:01]}  Nbd7 {[%clk 0:02:48]} 7. O-O {[%clk 0:03:01]}  e5 {[%clk 0:02:47]} 8. Be3 {[%clk 0:03:00]}  Qe7 {[%clk 0:02:29]} 9. Qc2 {[%clk 0:02:59]}  c6 {[%clk 0:02:27]} 10. Rad1 {[%clk 0:02:56]}  Kh8 {[%clk 0:02:14]} 11. h3 {[%clk 0:02:47]}  a6 {[%clk 0:01:59]} 12. Rfe1 {[%clk 0:02:25]}  Ng8 {[%clk 0:01:56]} 13. a3 {[%clk 0:01:52]}  f5 {[%clk 0:01:52]} 14. exf5 {[%clk 0:01:52]}  gxf5 {[%clk 0:01:51]} 15. Bg5 {[%clk 0:01:49]}  Qf7 {[%clk 0:01:50]} 16. dxe5 {[%clk 0:01:47]}  dxe5 {[%clk 0:01:50]} 17. Bf1 {[%clk 0:01:34]}  e4 {[%clk 0:01:44]} 18. Nd4 {[%clk 0:01:30]}  Qg6 {[%clk 0:01:44]} 19. Bf4 {[%clk 0:01:29]}  Ne5 {[%clk 0:01:41]} 20. Kh1 {[%clk 0:01:26]}  Re8 {[%clk 0:01:15]} 21. f3 {[%clk 0:01:01]}  exf3 {[%clk 0:01:12]} 22. Nxf3 {[%clk 0:01:00]}  Nxf3 {[%clk 0:01:12]} 23. gxf3 {[%clk 0:01:01]}  Rxe1 {[%clk 0:01:10]} 24. Rxe1 {[%clk 0:01:01]}  Be6 {[%clk 0:01:06]} 25. Na4 {[%clk 0:00:57]}  Re8 {[%clk 0:00:38]} 26. Bg2 {[%clk 0:00:54]}  Qf7 {[%clk 0:00:17]} 27. b3 {[%clk 0:00:52]}  Bc8 {[%clk 0:00:16]} 28. Re2 {[%clk 0:00:42]}  Rxe2 {[%clk 0:00:10]} 29. Qxe2 {[%clk 0:00:42]}  b5 {[%clk 0:00:09]} 30. Nc5 {[%clk 0:00:41]}  bxc4 {[%clk 0:00:08]} 31. bxc4 {[%clk 0:00:40]}  Nf6 {[%clk 0:00:07]} 32. Qd3 {[%clk 0:00:33]}  Nh5 {[%clk 0:00:03]} 33. Qd8+ {[%clk 0:00:31]}  Qf8 {[%clk 0:00:04]} 34. Qxf8+ {[%clk 0:00:29]}  Bxf8 {[%clk 0:00:05]} 35. Be5+ {[%clk 0:00:30]}  Kg8 {[%clk 0:00:06]} 36. f4 {[%clk 0:00:30]}  Bxc5 {[%clk 0:00:05]} 37. Bxc6 {[%clk 0:00:29]}  Ng3+ {[%clk 0:00:04]} 38. Kg2 {[%clk 0:00:29]}  Ne4 {[%clk 0:00:04]} 39. Bd5+ {[%clk 0:00:28]}  Kf8 {[%clk 0:00:05]} 40. a4 {[%clk 0:00:27]}  Nd6 {[%clk 0:00:05]} 41. Kf3 {[%clk 0:00:27]}  Bd7 {[%clk 0:00:05]} 42. a5 {[%clk 0:00:26]}  Be8 {[%clk 0:00:05]} 43. Ke2 {[%clk 0:00:23]}  Bf7 {[%clk 0:00:06]} 44. Kd3 {[%clk 0:00:23]}  Bxd5 {[%clk 0:00:05]} 45. cxd5 {[%clk 0:00:24]}  Ke7 {[%clk 0:00:06]} 46. Bxd6+ {[%clk 0:00:24]}  Kxd6 {[%clk 0:00:06]} 0-1


[Site "https://www.chess.com"]

[Event "Titled Tuesday Blitz December 27 Early 2022"]
[White "Kovacevic, Radmila"]
[Black "Gulevich, Artem"]
[WhiteFideId "933171"]
[BlackFideId "24119580"]
[WhiteElo "2106"]
[BlackElo "2304"]
[Result "0-1"]
[Round "01"]
[TimeControl "180+2"]
[Date "2022.12.27"]
[WhiteClock "0:00:39"]
[BlackClock "0:00:12"]

1. e4 {[%clk 0:02:58]}  c5 {[%clk 0:02:59]} 2. c3 {[%clk 0:02:58]}  Nf6 {[%clk 0:02:59]} 3. e5 {[%clk 0:02:58]}  Nd5 {[%clk 0:02:59]} 4. Nf3 {[%clk 0:02:59]}  Nc6 {[%clk 0:02:58]} 5. d4 {[%clk 0:03:00]}  cxd4 {[%clk 0:02:58]} 6. cxd4 {[%clk 0:03:00]}  d6 {[%clk 0:02:58]} 7. Bc4 {[%clk 0:03:00]}  dxe5 {[%clk 0:02:58]} 8. dxe5 {[%clk 0:03:00]}  Ndb4 {[%clk 0:02:58]} 9. Qb3 {[%clk 0:02:55]}  e6 {[%clk 0:02:58]} 10. a3 {[%clk 0:02:55]}  Na5 {[%clk 0:02:43]} 11. Bb5+ {[%clk 0:02:45]}  Bd7 {[%clk 0:02:42]} 12. Qa4 {[%clk 0:02:41]}  Bxb5 {[%clk 0:01:46]} 13. Qxb5+ {[%clk 0:02:39]}  Nbc6 {[%clk 0:01:46]} 14. Be3 {[%clk 0:02:19]}  a6 {[%clk 0:01:39]} 15. Qa4 {[%clk 0:02:13]}  b5 {[%clk 0:01:33]} 16. Qc2 {[%clk 0:02:11]}  Rc8 {[%clk 0:01:32]} 17. Nc3 {[%clk 0:02:06]}  Nc4 {[%clk 0:01:29]} 18. Bg5 {[%clk 0:02:02]}  Be7 {[%clk 0:01:15]} 19. Bxe7 {[%clk 0:01:57]}  Qxe7 {[%clk 0:01:16]} 20. Qe2 {[%clk 0:01:50]}  O-O {[%clk 0:01:15]} 21. O-O {[%clk 0:01:48]}  Rfd8 {[%clk 0:01:12]} 22. Rad1 {[%clk 0:01:43]}  h6 {[%clk 0:01:12]} 23. h3 {[%clk 0:01:40]}  Rxd1 {[%clk 0:01:06]} 24. Rxd1 {[%clk 0:01:41]}  Rd8 {[%clk 0:01:07]} 25. Rxd8+ {[%clk 0:01:40]}  Qxd8 {[%clk 0:01:08]} 26. a4 {[%clk 0:01:25]}  Qb8 {[%clk 0:00:58]} 27. axb5 {[%clk 0:01:24]}  axb5 {[%clk 0:00:58]} 28. b3 {[%clk 0:01:23]}  N4a5 {[%clk 0:00:43]} 29. Qxb5 {[%clk 0:01:20]}  Qxb5 {[%clk 0:00:41]} 30. Nxb5 {[%clk 0:01:21]}  Nxb3 {[%clk 0:00:41]} 31. Na3 {[%clk 0:01:13]}  Nc1 {[%clk 0:00:20]} 32. Kf1 {[%clk 0:01:07]}  Nd3 {[%clk 0:00:19]} 33. Nc4 {[%clk 0:01:07]}  Nf4 {[%clk 0:00:18]} 34. h4 {[%clk 0:01:06]}  h5 {[%clk 0:00:17]} 35. g3 {[%clk 0:01:05]}  Nd5 {[%clk 0:00:17]} 36. Ke2 {[%clk 0:01:05]}  Kh7 {[%clk 0:00:16]} 37. Ng5+ {[%clk 0:01:03]}  Kg6 {[%clk 0:00:16]} 38. f4 {[%clk 0:01:02]}  Ndb4 {[%clk 0:00:14]} 39. Ne3 {[%clk 0:00:59]}  Ne7 {[%clk 0:00:13]} 40. Kf3 {[%clk 0:00:59]}  Nf5 {[%clk 0:00:13]} 41. Nxf5 {[%clk 0:00:55]}  exf5 {[%clk 0:00:14]} 42. Ke3 {[%clk 0:00:54]}  Nd5+ {[%clk 0:00:14]} 43. Kd4 {[%clk 0:00:54]}  Nb4 {[%clk 0:00:13]} 44. Kc5 {[%clk 0:00:53]}  Nc2 {[%clk 0:00:13]} 45. Kd6 {[%clk 0:00:53]}  Ne3 {[%clk 0:00:13]} 46. Kd7 {[%clk 0:00:52]}  Nf1 {[%clk 0:00:13]} 47. Nxf7 {[%clk 0:00:52]}  Nxg3 {[%clk 0:00:10]} 48. Nh8+ {[%clk 0:00:51]}  Kh7 {[%clk 0:00:09]} 49. e6 {[%clk 0:00:52]}  Ne4 {[%clk 0:00:09]} 50. Nf7 {[%clk 0:00:50]}  Kg6 {[%clk 0:00:08]} 51. Nd6 {[%clk 0:00:46]}  Nc5+ {[%clk 0:00:08]} 52. Ke7 {[%clk 0:00:46]}  Nd3 {[%clk 0:00:08]} 53. Kf8 {[%clk 0:00:42]}  Nxf4 {[%clk 0:00:08]} 54. e7 {[%clk 0:00:43]}  Ne6+ {[%clk 0:00:09]} 55. Kg8 {[%clk 0:00:43]}  Nc7 {[%clk 0:00:09]} 56. Nxf5 {[%clk 0:00:42]}  Kxf5 {[%clk 0:00:08]} 57. Kxg7 {[%clk 0:00:41]}  Kg4 {[%clk 0:00:08]} 58. Kf6 {[%clk 0:00:39]}  Kxh4 {[%clk 0:00:09]} 59. Ke5 {[%clk 0:00:40]}  Kg5 {[%clk 0:00:07]} 60. Kd6 {[%clk 0:00:40]}  Ne8+ {[%clk 0:00:08]} 61. Kd5 {[%clk 0:00:39]}  h4 {[%clk 0:00:08]} 62. Ke4 {[%clk 0:00:39]}  Kg4 {[%clk 0:00:09]} 63. Ke3 {[%clk 0:00:39]}  Kg3 {[%clk 0:00:10]} 64. Ke2 {[%clk 0:00:39]}  Kg2 {[%clk 0:00:11]} 65. Ke3 {[%clk 0:00:39]}  h3 {[%clk 0:00:11]} 66. Kf4 {[%clk 0:00:39]}  h2 {[%clk 0:00:12]} 0-1


[Site "https://www.chess.com"]

[Event "Titled Tuesday Blitz December 27 Early 2022"]
[White "Larina, Maria"]
[Black "Taboas Rodriguez, Daniel"]
[WhiteFideId "24113182"]
[BlackFideId "2208466"]
[WhiteElo "1948"]
[BlackElo "2371"]
[Result "0-1"]
[Round "01"]
[TimeControl "180+2"]
[Date "2022.12.27"]
[WhiteClock "0:00:06"]
[BlackClock "0:00:59"]

1. e4 {[%clk 0:03:00]}  e5 {[%clk 0:02:59]} 2. Nf3 {[%clk 0:03:00]}  Nc6 {[%clk 0:03:00]} 3. Nc3 {[%clk 0:02:59]}  Nf6 {[%clk 0:03:00]} 4. Bb5 {[%clk 0:02:59]}  Bb4 {[%clk 0:02:59]} 5. O-O {[%clk 0:02:59]}  O-O {[%clk 0:02:59]} 6. d3 {[%clk 0:02:58]}  d6 {[%clk 0:03:00]} 7. Ne2 {[%clk 0:02:58]}  Ne7 {[%clk 0:02:59]} 8. c3 {[%clk 0:02:54]}  Ba5 {[%clk 0:02:59]} 9. Ng3 {[%clk 0:02:53]}  c6 {[%clk 0:02:59]} 10. Ba4 {[%clk 0:02:49]}  Ng6 {[%clk 0:02:58]} 11. h3 {[%clk 0:02:42]}  d5 {[%clk 0:02:55]} 12. Qe2 {[%clk 0:02:25]}  Bc7 {[%clk 0:02:39]} 13. Re1 {[%clk 0:02:16]}  h6 {[%clk 0:02:38]} 14. Nf5 {[%clk 0:02:13]}  Bxf5 {[%clk 0:02:26]} 15. exf5 {[%clk 0:02:11]}  Nf4 {[%clk 0:02:27]} 16. Bxf4 {[%clk 0:02:10]}  exf4 {[%clk 0:02:28]} 17. Nh4 {[%clk 0:01:09]}  Re8 {[%clk 0:02:24]} 18. Qf3 {[%clk 0:01:08]}  Qd7 {[%clk 0:02:20]} 19. Bc2 {[%clk 0:00:51]}  Re7 {[%clk 0:02:19]} 20. Rxe7 {[%clk 0:00:43]}  Qxe7 {[%clk 0:02:19]} 21. Kf1 {[%clk 0:00:25]}  Re8 {[%clk 0:02:18]} 22. Qd1 {[%clk 0:00:17]}  a5 {[%clk 0:01:37]} 23. Qe1 {[%clk 0:00:16]}  Qd7 {[%clk 0:01:37]} 24. Qd2 {[%clk 0:00:15]}  Re7 {[%clk 0:01:29]} 25. Re1 {[%clk 0:00:14]}  b5 {[%clk 0:01:28]} 26. Rxe7 {[%clk 0:00:14]}  Qxe7 {[%clk 0:01:29]} 27. Qe2 {[%clk 0:00:14]}  Kf8 {[%clk 0:01:26]} 28. Qxe7+ {[%clk 0:00:13]}  Kxe7 {[%clk 0:01:27]} 29. d4 {[%clk 0:00:11]}  a4 {[%clk 0:01:24]} 30. a3 {[%clk 0:00:11]}  Ne4 {[%clk 0:01:10]} 31. Bxe4 {[%clk 0:00:10]}  dxe4 {[%clk 0:01:11]} 32. Ke2 {[%clk 0:00:10]}  Kf6 {[%clk 0:01:09]} 33. g3 {[%clk 0:00:09]}  fxg3 {[%clk 0:01:07]} 34. fxg3 {[%clk 0:00:09]}  Bxg3 {[%clk 0:01:08]} 35. Ng2 {[%clk 0:00:09]}  Kxf5 {[%clk 0:01:08]} 36. Ke3 {[%clk 0:00:09]}  g5 {[%clk 0:01:04]} 37. Ke2 {[%clk 0:00:07]}  Ke6 {[%clk 0:01:02]} 38. Ke3 {[%clk 0:00:07]}  f5 {[%clk 0:01:02]} 39. Ke2 {[%clk 0:00:07]}  f4 {[%clk 0:01:02]} 40. Kf1 {[%clk 0:00:06]}  Kd5 {[%clk 0:00:59]} 41. Ke2 {[%clk 0:00:06]}  Kc4 {[%clk 0:00:59]} 0-1


[Site "https://www.chess.com"]

[Event "Titled Tuesday Blitz December 27 Early 2022"]
[White "Lauridsen, Jesper Morch"]
[Black "Pinheiro, Iung Alicio de O."]
[WhiteFideId "1401890"]
[BlackFideId "2104350"]
[WhiteElo "2309"]
[BlackElo "2306"]
[Result "0-1"]
[Round "01"]
[TimeControl "180+2"]
[Date "2022.12.27"]
[WhiteClock "0:00:03"]
[BlackClock "0:00:10"]

1. e4 {[%clk 0:02:57]}  c5 {[%clk 0:02:47]} 2. Nf3 {[%clk 0:02:56]}  Nc6 {[%clk 0:02:43]} 3. Nc3 {[%clk 0:02:56]}  e5 {[%clk 0:02:42]} 4. Bc4 {[%clk 0:02:55]}  d6 {[%clk 0:02:40]} 5. d3 {[%clk 0:02:54]}  Be7 {[%clk 0:02:40]} 6. Nd2 {[%clk 0:02:53]}  Nf6 {[%clk 0:02:39]} 7. O-O {[%clk 0:02:52]}  O-O {[%clk 0:02:40]} 8. h3 {[%clk 0:02:45]}  Be6 {[%clk 0:02:37]} 9. Bxe6 {[%clk 0:02:37]}  fxe6 {[%clk 0:02:37]} 10. Nf3 {[%clk 0:02:37]}  Qe8 {[%clk 0:02:22]} 11. Bg5 {[%clk 0:02:33]}  Nh5 {[%clk 0:02:20]} 12. Bxe7 {[%clk 0:02:30]}  Nxe7 {[%clk 0:02:19]} 13. Ng5 {[%clk 0:02:14]}  Rf6 {[%clk 0:02:06]} 14. Qg4 {[%clk 0:01:47]}  Qg6 {[%clk 0:01:53]} 15. Ne2 {[%clk 0:01:28]}  Raf8 {[%clk 0:01:40]} 16. Nf3 {[%clk 0:00:50]}  Qe8 {[%clk 0:01:19]} 17. Kh1 {[%clk 0:00:50]}  Rh6 {[%clk 0:01:03]} 18. c3 {[%clk 0:00:27]}  Ng6 {[%clk 0:00:53]} 19. d4 {[%clk 0:00:20]}  Ngf4 {[%clk 0:00:39]} 20. Ng3 {[%clk 0:00:07]}  Rff6 {[%clk 0:00:13]} 21. dxe5 {[%clk 0:00:06]}  Rfg6 {[%clk 0:00:13]} 22. Qh4 {[%clk 0:00:06]}  Nxg3+ {[%clk 0:00:11]} 23. fxg3 {[%clk 0:00:05]}  Rxh4 {[%clk 0:00:11]} 24. Nxh4 {[%clk 0:00:05]}  Rh6 {[%clk 0:00:09]} 25. Rxf4 {[%clk 0:00:04]}  dxe5 {[%clk 0:00:09]} 26. Rf3 {[%clk 0:00:04]}  Rf6 {[%clk 0:00:09]} 27. Raf1 {[%clk 0:00:04]}  Rxf3 {[%clk 0:00:09]} 28. Nxf3 {[%clk 0:00:05]}  Qb5 {[%clk 0:00:08]} 29. Kg1 {[%clk 0:00:04]}  Qxb2 {[%clk 0:00:08]} 30. Nxe5 {[%clk 0:00:04]}  Qxc3 {[%clk 0:00:09]} 31. Nd7 {[%clk 0:00:05]}  Qd4+ {[%clk 0:00:08]} 32. Kh2 {[%clk 0:00:04]}  Qxd7 {[%clk 0:00:09]} 33. Rf3 {[%clk 0:00:02]}  c4 {[%clk 0:00:10]} 34. e5 {[%clk 0:00:03]}  Qd4 {[%clk 0:00:10]} 0-1


[Site "https://www.chess.com"]

[Event "Titled Tuesday Blitz December 27 Early 2022"]
[White "Ljukin, Sergei"]
[Black "Pakleza, Zbigniew"]
[WhiteFideId "14102200"]
[BlackFideId "1119290"]
[WhiteElo "2362"]
[BlackElo "2494"]
[Result "0-1"]
[Round "01"]
[TimeControl "180+2"]
[Date "2022.12.27"]
[WhiteClock "0:00:02"]
[BlackClock "0:00:05"]

1. e4 {[%clk 0:02:54]}  d6 {[%clk 0:02:52]} 2. d4 {[%clk 0:02:54]}  Nf6 {[%clk 0:02:52]} 3. Nc3 {[%clk 0:02:54]}  c6 {[%clk 0:02:52]} 4. f4 {[%clk 0:02:53]}  Qb6 {[%clk 0:02:52]} 5. e5 {[%clk 0:02:52]}  Nd5 {[%clk 0:02:52]} 6. Nxd5 {[%clk 0:02:51]}  cxd5 {[%clk 0:02:53]} 7. Nf3 {[%clk 0:02:48]}  Nc6 {[%clk 0:02:53]} 8. c3 {[%clk 0:02:47]}  Bf5 {[%clk 0:02:53]} 9. Bd3 {[%clk 0:02:46]}  g6 {[%clk 0:02:54]} 10. Bxf5 {[%clk 0:02:45]}  gxf5 {[%clk 0:02:55]} 11. O-O {[%clk 0:02:30]}  e6 {[%clk 0:02:55]} 12. Qe2 {[%clk 0:02:26]}  Be7 {[%clk 0:02:53]} 13. b4 {[%clk 0:02:15]}  O-O-O {[%clk 0:02:52]} 14. a4 {[%clk 0:02:14]}  Qc7 {[%clk 0:02:52]} 15. a5 {[%clk 0:02:07]}  Kb8 {[%clk 0:02:51]} 16. Qa2 {[%clk 0:01:55]}  a6 {[%clk 0:02:45]} 17. b5 {[%clk 0:01:46]}  axb5 {[%clk 0:02:46]} 18. Ba3 {[%clk 0:01:42]}  dxe5 {[%clk 0:02:37]} 19. Bxe7 {[%clk 0:01:37]}  Qxe7 {[%clk 0:02:38]} 20. Nxe5 {[%clk 0:01:33]}  Nxe5 {[%clk 0:02:35]} 21. fxe5 {[%clk 0:01:33]}  Rc8 {[%clk 0:02:24]} 22. Rfb1 {[%clk 0:01:30]}  Qd7 {[%clk 0:02:14]} 23. a6 {[%clk 0:01:23]}  b6 {[%clk 0:02:15]} 24. a7+ {[%clk 0:01:24]}  Ka8 {[%clk 0:02:15]} 25. Qa6 {[%clk 0:01:23]}  Rxc3 {[%clk 0:02:01]} 26. Rxb5 {[%clk 0:01:20]}  Qb7 {[%clk 0:01:32]} 27. Qxb6 {[%clk 0:01:04]}  Qxb6 {[%clk 0:01:28]} 28. Rxb6 {[%clk 0:01:05]}  Rhc8 {[%clk 0:01:22]} 29. Rd6 {[%clk 0:00:54]}  Rc1+ {[%clk 0:01:04]} 30. Rxc1 {[%clk 0:00:49]}  Rxc1+ {[%clk 0:01:05]} 31. Kf2 {[%clk 0:00:50]}  Rc7 {[%clk 0:00:57]} 32. Rd8+ {[%clk 0:00:48]}  Kxa7 {[%clk 0:00:57]} 33. Rh8 {[%clk 0:00:49]}  Kb6 {[%clk 0:00:52]} 34. Rxh7 {[%clk 0:00:49]}  Kb5 {[%clk 0:00:53]} 35. h4 {[%clk 0:00:46]}  Kc4 {[%clk 0:00:54]} 36. Ke3 {[%clk 0:00:43]}  f4+ {[%clk 0:00:41]} 37. Kxf4 {[%clk 0:00:41]}  Kxd4 {[%clk 0:00:42]} 38. h5 {[%clk 0:00:32]}  Rc1 {[%clk 0:00:40]} 39. h6 {[%clk 0:00:25]}  Rf1+ {[%clk 0:00:34]} 40. Kg5 {[%clk 0:00:25]}  Kxe5 {[%clk 0:00:35]} 41. g4 {[%clk 0:00:16]}  d4 {[%clk 0:00:32]} 42. Rh8 {[%clk 0:00:16]}  d3 {[%clk 0:00:27]} 43. Rd8 {[%clk 0:00:16]}  f6+ {[%clk 0:00:15]} 44. Kg6 {[%clk 0:00:15]}  Rf4 {[%clk 0:00:15]} 45. h7 {[%clk 0:00:14]}  Rxg4+ {[%clk 0:00:15]} 46. Kf7 {[%clk 0:00:12]}  Rh4 {[%clk 0:00:14]} 47. h8=Q {[%clk 0:00:11]}  Rxh8 {[%clk 0:00:13]} 48. Rxh8 {[%clk 0:00:12]}  f5 {[%clk 0:00:10]} 49. Kg6 {[%clk 0:00:09]}  Ke4 {[%clk 0:00:08]} 50. Kg5 {[%clk 0:00:06]}  f4 {[%clk 0:00:05]} 51. Kg4 {[%clk 0:00:05]}  e5 {[%clk 0:00:06]} 52. Re8 {[%clk 0:00:05]}  d2 {[%clk 0:00:04]} 53. Rd8 {[%clk 0:00:03]}  Ke3 {[%clk 0:00:05]} 54. Kh3 {[%clk 0:00:02]}  f3 {[%clk 0:00:05]} 55. Kg3 {[%clk 0:00:02]}  e4 {[%clk 0:00:05]} 0-1


[Site "https://www.chess.com"]

[Event "Titled Tuesday Blitz December 27 Early 2022"]
[White "Martic, Ivan"]
[Black "Martinez Alcantara, Jose Eduardo"]
[WhiteFideId "929301"]
[BlackFideId "3805662"]
[WhiteElo "2301"]
[BlackElo "2619"]
[Result "0-1"]
[Round "01"]
[TimeControl "180+2"]
[Date "2022.12.27"]
[WhiteClock "0:01:15"]
[BlackClock "0:02:03"]

1. c4 {[%clk 0:03:00]}  c5 {[%clk 0:02:58]} 2. Nc3 {[%clk 0:02:59]}  Nc6 {[%clk 0:02:59]} 3. Nf3 {[%clk 0:02:59]}  g6 {[%clk 0:02:59]} 4. e3 {[%clk 0:02:58]}  Bg7 {[%clk 0:03:00]} 5. d4 {[%clk 0:02:58]}  d6 {[%clk 0:03:01]} 6. d5 {[%clk 0:02:57]}  Nb4 {[%clk 0:03:01]} 7. a3 {[%clk 0:02:55]}  Na6 {[%clk 0:03:02]} 8. h3 {[%clk 0:02:48]}  Nf6 {[%clk 0:03:02]} 9. Bd3 {[%clk 0:02:47]}  O-O {[%clk 0:03:02]} 10. O-O {[%clk 0:02:47]}  e5 {[%clk 0:03:03]} 11. e4 {[%clk 0:02:46]}  Ne8 {[%clk 0:03:02]} 12. Bg5 {[%clk 0:02:43]}  Bf6 {[%clk 0:03:01]} 13. Be3 {[%clk 0:02:35]}  Bg7 {[%clk 0:03:00]} 14. Bg5 {[%clk 0:02:34]}  f6 {[%clk 0:03:01]} 15. Bd2 {[%clk 0:02:30]}  f5 {[%clk 0:02:59]} 16. Ng5 {[%clk 0:02:30]}  Nac7 {[%clk 0:02:58]} 17. b4 {[%clk 0:02:28]}  b6 {[%clk 0:02:46]} 18. bxc5 {[%clk 0:02:22]}  dxc5 {[%clk 0:02:47]} 19. exf5 {[%clk 0:02:09]}  gxf5 {[%clk 0:02:44]} 20. f4 {[%clk 0:02:06]}  e4 {[%clk 0:02:43]} 21. Bc2 {[%clk 0:02:05]}  h6 {[%clk 0:02:43]} 22. Ne6 {[%clk 0:02:01]}  Nxe6 {[%clk 0:02:41]} 23. dxe6 {[%clk 0:02:02]}  Bxe6 {[%clk 0:02:41]} 24. Kh1 {[%clk 0:01:55]}  Bxc4 {[%clk 0:02:33]} 25. Bb3 {[%clk 0:01:55]}  Bf7 {[%clk 0:02:27]} 26. Ra2 {[%clk 0:01:50]}  c4 {[%clk 0:02:26]} 27. Ba4 {[%clk 0:01:48]}  Nf6 {[%clk 0:02:20]} 28. Ne2 {[%clk 0:01:34]}  c3 {[%clk 0:02:17]} 29. Nxc3 {[%clk 0:01:29]}  Bxa2 {[%clk 0:02:17]} 30. Nxa2 {[%clk 0:01:30]}  Kh8 {[%clk 0:02:15]} 31. Bb3 {[%clk 0:01:28]}  Rc8 {[%clk 0:02:11]} 32. Qe2 {[%clk 0:01:27]}  Qd3 {[%clk 0:02:09]} 33. Qxd3 {[%clk 0:01:24]}  exd3 {[%clk 0:02:10]} 34. Bb4 {[%clk 0:01:25]}  Rfe8 {[%clk 0:02:03]} 35. Rd1 {[%clk 0:01:24]}  Ne4 {[%clk 0:02:03]} 36. Kh2 {[%clk 0:01:22]}  Nf2 {[%clk 0:02:02]} 37. Rd2 {[%clk 0:01:21]}  Re2 {[%clk 0:02:02]} 38. Rxe2 {[%clk 0:01:15]}  dxe2 {[%clk 0:02:03]} 39. Kg3 {[%clk 0:01:15]}  Nd3 {[%clk 0:02:03]} 0-1


[Site "https://www.chess.com"]

[Event "Titled Tuesday Blitz December 27 Early 2022"]
[White "Martynov, Pavel"]
[Black "Roy Chowdhury, Saptarshi"]
[WhiteFideId "4101260"]
[BlackFideId "5002974"]
[WhiteElo "2414"]
[BlackElo "2273"]
[Result "0-1"]
[Round "01"]
[TimeControl "180+2"]
[Date "2022.12.27"]
[WhiteClock "0:00:05"]
[BlackClock "0:01:36"]

1. e4 {[%clk 0:02:55]}  b6 {[%clk 0:02:59]} 2. Nf3 {[%clk 0:02:54]}  Bb7 {[%clk 0:02:59]} 3. d4 {[%clk 0:02:53]}  Bxe4 {[%clk 0:02:57]} 4. Nc3 {[%clk 0:02:51]}  Bb7 {[%clk 0:02:57]} 5. Bc4 {[%clk 0:02:44]}  d5 {[%clk 0:02:55]} 6. Bd3 {[%clk 0:02:41]}  e6 {[%clk 0:02:55]} 7. O-O {[%clk 0:02:40]}  Nf6 {[%clk 0:02:55]} 8. a4 {[%clk 0:02:23]}  a5 {[%clk 0:02:51]} 9. Bg5 {[%clk 0:02:21]}  Be7 {[%clk 0:02:51]} 10. Re1 {[%clk 0:02:22]}  Ba6 {[%clk 0:02:49]} 11. Bb5+ {[%clk 0:02:18]}  c6 {[%clk 0:02:47]} 12. Bxa6 {[%clk 0:02:19]}  Nxa6 {[%clk 0:02:47]} 13. Ne5 {[%clk 0:02:19]}  Nb4 {[%clk 0:02:47]} 14. Na2 {[%clk 0:02:18]}  Rc8 {[%clk 0:02:44]} 15. Nxb4 {[%clk 0:02:11]}  Bxb4 {[%clk 0:02:43]} 16. c3 {[%clk 0:02:11]}  Be7 {[%clk 0:02:42]} 17. Qe2 {[%clk 0:01:49]}  O-O {[%clk 0:02:38]} 18. Qa6 {[%clk 0:01:49]}  h6 {[%clk 0:02:35]} 19. Bh4 {[%clk 0:01:39]}  c5 {[%clk 0:02:25]} 20. Qb7 {[%clk 0:01:29]}  Qc7 {[%clk 0:02:21]} 21. Qa6 {[%clk 0:01:21]}  cxd4 {[%clk 0:02:02]} 22. cxd4 {[%clk 0:01:17]}  Bb4 {[%clk 0:02:01]} 23. Red1 {[%clk 0:00:57]}  Ne4 {[%clk 0:01:59]} 24. f3 {[%clk 0:00:53]}  Nd6 {[%clk 0:01:56]} 25. Bg3 {[%clk 0:00:33]}  Qb7 {[%clk 0:01:55]} 26. Qxb7 {[%clk 0:00:31]}  Nxb7 {[%clk 0:01:55]} 27. Nd7 {[%clk 0:00:32]}  Rfe8 {[%clk 0:01:51]} 28. Nxb6 {[%clk 0:00:32]}  Rc2 {[%clk 0:01:51]} 29. Rab1 {[%clk 0:00:29]}  Nd6 {[%clk 0:01:49]} 30. Nd7 {[%clk 0:00:26]}  Rec8 {[%clk 0:01:46]} 31. Be1 {[%clk 0:00:22]}  Bxe1 {[%clk 0:01:43]} 32. Rxe1 {[%clk 0:00:21]}  Nf5 {[%clk 0:01:44]} 33. b4 {[%clk 0:00:17]}  axb4 {[%clk 0:01:40]} 34. Rxb4 {[%clk 0:00:17]}  Ra2 {[%clk 0:01:40]} 35. g4 {[%clk 0:00:14]}  Nh4 {[%clk 0:01:39]} 36. Ne5 {[%clk 0:00:13]}  f6 {[%clk 0:01:39]} 37. Nd3 {[%clk 0:00:05]}  Nxf3+ {[%clk 0:01:38]} 38. Kf1 {[%clk 0:00:05]}  Nxh2+ {[%clk 0:01:36]} 0-1


[Site "https://www.chess.com"]